fUSD/lending_fUSD_20250214
["ID","MTS","AMOUNT","RATE_DAILY","PERIOD"]
[353103345,1739562687660,-500.0,0.00013945,2]
[353103346,1739562687670,-1088.38,0.00013945,2]
[353103347,1739562687679,-500.0,0.00013945,2]
[353103348,1739562687690,-5237.55,0.00013945,2]
[353103349,1739562687699,-500.0,0.00013945,2]
[353103350,1739562687709,-1576.47,0.00013945,2]
[353103351,1739562687719,-500.0,0.00013945,2]
[353103352,1739562687728,-1022.12,0.00013945,2]
[353103353,1739562687738,-869.06,0.00013945,2]
[353103354,1739562687747,-500.0,0.00013945,2]
[353103355,1739562687757,-502.97335653,0.00013945,2]
[353103356,1739562687766,-580.79,0.00013945,2]
[353103357,1739562687775,-500.0,0.00013945,2]
[353103358,1739562687785,-500.0,0.00013945,2]
[353103359,1739562687794,-791.23,0.00013945,2]
[353103360,1739562687803,-569.88,0.00013945,2]
[353103361,1739562687813,-500.0,0.00013945,2]
[353103362,1739562687822,-500.0,0.00013945,2]
[353103363,1739562687831,-1129.3,0.00013945,2]
[353103364,1739562687842,-500.0,0.00013945,2]
[353103365,1739562687852,-500.0,0.00013945,2]
[353103366,1739562687861,-3307.39,0.00013945,2]
[353103367,1739562687872,-500.0,0.00013945,2]
[353103368,1739562687881,-500.0,0.00013945,2]
[353103369,1739562687891,-500.0,0.00013945,2]
[353103370,1739562687900,-500.0,0.00013945,2]
[353103371,1739562687910,-4755.22,0.00013945,2]
[353103372,1739562687921,-500.0,0.00013945,2]
[353103373,1739562687935,-504.2091437,0.00013945,2]
[353103374,1739562687945,-544.82,0.00013945,2]
[353103375,1739562687955,-603.031188,0.00013945,2]
[353103376,1739562687966,-1208.91,0.00013945,2]
[353103377,1739562687976,-502.92321475,0.00013945,2]
[353103378,1739562687985,-888.91,0.00013945,2]
[353103379,1739562687995,-517.6,0.00013945,2]
[353103380,1739562688006,-500.0,0.00013945,2]
[353103381,1739562688016,-500.0,0.00013945,2]
[353103382,1739562688025,-1313.35,0.00013945,2]
[353103383,1739562688035,-625.83648103,0.00013945,2]
[353103384,1739562688045,-500.0,0.00013945,2]
[353103385,1739562688055,-2286.11,0.00013945,2]
[353103386,1739562688064,-2861.41,0.00013945,2]
[353103387,1739562688074,-500.0,0.00013945,2]
[353103388,1739562688083,-3067.22,0.00013945,2]
[353103389,1739562688093,-513.32493616,0.00013945,2]
[353103390,1739562688104,-500.0,0.00013945,2]
[353103391,1739562688115,-1108.64,0.00013945,2]
[353103392,1739562688126,-2054.2,0.00013945,2]
[353103393,1739562688136,-500.0,0.00013945,2]
[353103394,1739562688146,-500.0,0.00013945,2]
[353103395,1739562688156,-1680.26,0.00013945,2]
[353103396,1739562688166,-500.0,0.00013945,2]
[353103397,1739562688176,-1857.43,0.00013945,2]
[353103398,1739562688186,-500.0,0.00013945,2]
[353103399,1739562688196,-500.0,0.00013945,2]
[353103400,1739562688207,-500.0,0.00013945,2]
[353103401,1739562688216,-500.0,0.00013945,2]
[353103402,1739562688228,-500.0,0.00013945,2]
[353103403,1739562688238,-2261.23,0.00013945,2]
[353103404,1739562688247,-500.0,0.00013945,2]
[353103405,1739562688259,-614.069016,0.00013945,2]
[353103406,1739562688269,-500.0,0.00013945,2]
[353103407,1739562688281,-651.92,0.00013945,2]
[353103408,1739562688291,-500.0,0.00013945,2]
[353103409,1739562688300,-1283.97,0.00013945,2]
[353103410,1739562688310,-682.12,0.00013945,2]
[353103411,1739562688319,-500.0,0.00013945,2]
[353103412,1739562688329,-2640.55,0.00013945,2]
[353103413,1739562688338,-500.0,0.00013945,2]
[353103414,1739562688348,-3989.15,0.00013945,2]
[353103415,1739562688357,-922.92,0.00013945,2]
[353103416,1739562688368,-4024.68,0.00013945,2]
[353103417,1739562688379,-500.0,0.00013945,2]
[353103418,1739562688389,-1259.62,0.00013945,2]
[353103419,1739562688400,-3447.07,0.00013945,2]
[353103420,1739562688410,-793.09,0.00013945,2]
[353103421,1739562688420,-500.0,0.00013945,2]
[353103422,1739562688429,-1917.12,0.00013945,2]
[353103423,1739562688439,-500.0,0.00013945,2]
[353103424,1739562688450,-2968.75,0.00013945,2]
[353103425,1739562688461,-3462.99,0.00013945,2]
[353103426,1739562688471,-500.0,0.00013945,2]
[353103427,1739562688482,-500.0,0.00013945,2]
[353103428,1739562688491,-921.57,0.00013945,2]
[353103429,1739562688501,-500.0,0.00013945,2]
[353103430,1739562688510,-2006.39,0.00013945,2]
[353103431,1739562688520,-500.0,0.00013945,2]
[353103432,1739562688529,-500.0,0.00013945,2]
[353103433,1739562688540,-500.0,0.00013945,2]
[353103434,1739562688550,-506.82392073,0.00013945,2]
[353103435,1739562688560,-500.0,0.00013945,2]
[353103436,1739562688570,-1213.3,0.00013945,2]
[353103437,1739562688580,-623.1,0.00013945,2]
[353103438,1739562688590,-500.0,0.00013945,2]
[353103439,1739562688599,-500.0,0.00013945,2]
[353103440,1739562688610,-4663.42,0.00013945,2]
[353103441,1739562688620,-2043.51,0.00013945,2]
[353103442,1739562688630,-1975.3,0.00013945,2]
[353103443,1739562688639,-2037.91,0.00013945,2]
[353103444,1739562688650,-770.4,0.00013945,2]
[353103445,1739562688661,-1784.97,0.00013945,2]
[353103446,1739562688670,-2395.89,0.00013945,2]
[353103447,1739562688680,-1284.45,0.00013945,2]
[353103448,1739562688689,-500.0,0.00013945,2]
[353103449,1739562688699,-233.78850089,0.00013945,2]
[353103450,1739562688709,-2642.37,0.00013945,2]
[353103451,1739562688719,-2224.27,0.00013945,2]
[353103452,1739562688728,-3102.78,0.00013945,2]
[353103453,1739562688739,-2832.1,0.00013945,2]
[353103454,1739562688749,-4488.85,0.00013945,2]
[353103455,1739562688759,-2004.07,0.00013945,2]
[353103456,1739562688768,-500.0,0.00013945,2]
[353103457,1739562688778,-631.03,0.00013945,2]
[353103458,1739562688788,-649.86,0.00013945,2]
[353103459,1739562688797,-628.793465,0.00013945,2]
[353103460,1739562688807,-1196.04,0.00013945,2]
[353103461,1739562688816,-1439.45,0.00013945,2]
[353103462,1739562688825,-500.0,0.00013945,2]
[353103463,1739562688835,-2289.37,0.00013945,2]
[353103464,1739562688844,-500.0,0.00013945,2]
[353103465,1739562688854,-4255.5,0.00013945,2]
[353103466,1739562688863,-518.66775313,0.00013945,2]
[353103467,1739562688873,-630.99,0.00013945,2]
[353103468,1739562688883,-1267.72,0.00013945,2]
[353103469,1739562688893,-500.0,0.00013945,2]
[353103470,1739562688902,-781.66,0.00013945,2]
[353103471,1739562688911,-3075.69,0.00013945,2]
[353103472,1739562688921,-500.0,0.00013945,2]
[353103473,1739562688935,-500.0,0.00013945,2]
[353103474,1739562688945,-826.11,0.00013945,2]
[353103475,1739562688954,-2556.09,0.00013945,2]
[353103476,1739562688965,-1008.69,0.00013945,2]
[353103477,1739562688988,-500.0,0.00013945,2]
[353103478,1739562688999,-500.0,0.00013945,2]
[353103479,1739562689010,-502.48,0.00013945,2]
[353103480,1739562689019,-500.0,0.00013945,2]
[353103481,1739562689028,-2435.08,0.00013945,2]
[353103482,1739562689038,-3183.3,0.00013945,2]
[353103483,1739562689048,-618.12,0.00013945,2]
[353103484,1739562689057,-500.0,0.00013945,2]
[353103485,1739562689067,-638.704479,0.00013945,2]
[353103486,1739562689076,-1525.96,0.00013945,2]
[353103487,1739562689085,-2994.89,0.00013945,2]
[353103488,1739562689096,-851.83,0.00013945,2]
[353103489,1739562689105,-521.26,0.00013945,2]
[353103490,1739562689114,-1261.02,0.00013945,2]
[353103491,1739562689123,-500.0,0.00013945,2]
[353103492,1739562689132,-852.54,0.00013945,2]
[353103493,1739562689142,-1938.31,0.00013945,2]
[353103494,1739562689152,-1886.79,0.00013945,2]
[353103495,1739562689162,-5719.28,0.00013945,2]
[353103496,1739562689172,-167.546303,0.00013945,2]
[353103497,1739562689181,-500.0,0.00013945,2]
[353103498,1739562689191,-1800.33,0.00013945,2]
[353103499,1739562689201,-1932.14,0.00013945,2]
[353103500,1739562689210,-8359.64,0.00013945,2]
[353103501,1739562689219,-500.0,0.00013945,2]
[353103502,1739562689228,-167.546299,0.00013945,2]
[353103503,1739562689238,-500.0,0.00013945,2]
[353103504,1739562689247,-500.0,0.00013945,2]
[353103505,1739562689257,-3758.35,0.00013945,2]
[353103506,1739562689266,-500.0,0.00013945,2]
[353103507,1739562689275,-500.0,0.00013945,2]
[353103508,1739562689284,-3383.96,0.00013945,2]
[353103509,1739562689293,-5753.09,0.00013945,2]
[353103510,1739562689303,-3791.52,0.00013945,2]
[353103511,1739562689312,-640.221254,0.00013945,2]
[353103512,1739562689322,-500.0,0.00013945,2]
[353103513,1739562689333,-1866.41,0.00013945,2]
[353103514,1739562689342,-3983.16,0.00013945,2]
[353103515,1739562689351,-500.0,0.00013945,2]
[353103516,1739562689360,-932.16,0.00013945,2]
[353103517,1739562689369,-1155.08,0.00013945,2]
[353103518,1739562689378,-500.0,0.00013945,2]
[353103519,1739562689388,-880.56,0.00013945,2]
[353103520,1739562689398,-500.0,0.00013945,2]
[353103521,1739562689407,-899.41,0.00013945,2]
[353103522,1739562689419,-500.0,0.00013945,2]
[353103523,1739562689428,-500.0,0.00013945,2]
[353103524,1739562689438,-500.0,0.00013945,2]
[353103525,1739562689447,-437.24253852,0.00013945,2]
[353103526,1739562689457,-500.0,0.00013945,2]
[353103527,1739562689466,-2087.59,0.00013945,2]
[353103528,1739562689475,-833.47,0.00013945,2]
[353103529,1739562689484,-500.0,0.00013945,2]
[353103530,1739562689494,-505.60921073,0.00013945,2]
[353103531,1739562689503,-500.0,0.00013945,2]
[353103532,1739562689513,-2400.01,0.00013945,2]
[353103533,1739562689522,-1282.94,0.00013945,2]
[353103534,1739562689531,-745.06,0.00013945,2]
[353103535,1739562689541,-3164.27,0.00013945,2]
[353103536,1739562689550,-1244.81,0.00013945,2]
[353103537,1739562689559,-500.0,0.00013945,2]
[353103538,1739562689569,-4216.9,0.00013945,2]
[353103539,1739562689578,-633.667826,0.00013945,2]
[353103540,1739562689587,-1905.75,0.00013945,2]
[353103541,1739562689597,-243.76144351,0.00013945,2]
[353103542,1739562689606,-3370.7,0.00013945,2]
[353103543,1739562689616,-3479.82,0.00013945,2]
[353103544,1739562689625,-1587.72,0.00013945,2]
[353103545,1739562689634,-4729.1,0.00013945,2]
[353103546,1739562689643,-500.0,0.00013945,2]
[353103547,1739562689651,-3454.6,0.00013945,2]
[353103548,1739562689662,-5416.92,0.00013945,2]
[353103549,1739562689671,-500.0,0.00013945,2]
[353103550,1739562689681,-896.53,0.00013945,2]
[353103551,1739562689690,-2883.92,0.00013945,2]
[353103552,1739562689700,-587.4,0.00013945,2]
[353103553,1739562689709,-3235.73,0.00013945,2]
[353103554,1739562689719,-500.0,0.00013945,2]
[353103555,1739562689728,-1886.03,0.00013945,2]
[353103556,1739562689738,-512.25187023,0.00013945,2]
[353103557,1739562689747,-2189.15,0.00013945,2]
[353103558,1739562689758,-500.0,0.00013945,2]
[353103559,1739562689768,-764.6,0.00013945,2]
[353103560,1739562689777,-10308.07,0.00013945,2]
[353103561,1739562689787,-1957.29,0.00013945,2]
[353103562,1739562689796,-500.0,0.00013945,2]
[353103563,1739562689807,-12071.63,0.00013945,2]
[353103564,1739562689818,-500.0,0.00013945,2]
[353103565,1739562689827,-2058.9,0.00013945,2]
[353103566,1739562689837,-507.53091272,0.00013945,2]
[353103567,1739562690091,-500.0,0.00013945,2]
[353103568,1739562690101,-3854.31,0.00013945,2]
[353103569,1739562690111,-4235.18,0.00013945,2]
[353103570,1739562690120,-621.769237,0.00013945,2]
[353103571,1739562690130,-500.0,0.00013945,2]
[353103572,1739562690139,-2176.03,0.00013945,2]
[353103573,1739562690149,-3232.79,0.00013945,2]
[353103574,1739562690158,-500.0,0.00013945,2]
[353103575,1739562690168,-500.0,0.00013945,2]
[353103576,1739562690177,-2581.46,0.00013945,2]
[353103577,1739562690187,-1126.74,0.00013945,2]
[353103578,1739562690196,-500.0,0.00013945,2]
[353103579,1739562690205,-946.68,0.00013945,2]
[353103580,1739562690215,-500.0,0.00013945,2]
[353103581,1739562690224,-1018.58,0.00013945,2]
[353103582,1739562690234,-500.0,0.00013945,2]
[353103583,1739562690243,-5560.18,0.00013945,2]
[353103584,1739562690254,-500.0,0.00013945,2]
[353103585,1739562690265,-2775.88,0.00013945,2]
[353103586,1739562690275,-2021.38,0.00013945,2]
[353103587,1739562690285,-500.0,0.00013945,2]
[353103588,1739562690295,-500.0,0.00013945,2]
[353103589,1739562690305,-1051.32,0.00013945,2]
[353103590,1739562690315,-545.85,0.00013945,2]
[353103591,1739562690325,-1561.87,0.00013945,2]
[353103592,1739562690335,-500.0,0.00013945,2]
[353103593,1739562690345,-500.0,0.00013945,2]
[353103594,1739562690355,-3509.61,0.00013945,2]
[353103595,1739562690364,-2695.26,0.00013945,2]
[353103596,1739562690374,-500.0,0.00013945,2]
[353103597,1739562690384,-500.0,0.00013945,2]
[353103598,1739562690393,-596.39816801,0.00013945,2]
[353103599,1739562690403,-500.0,0.00013945,2]
[353103600,1739562690412,-923.15,0.00013945,2]
[353103601,1739562690421,-1148.04,0.00013945,2]
[353103602,1739562690431,-477.19726895,0.00013945,2]
[353103603,1739562690440,-3161.79,0.00013945,2]
[353103604,1739562690450,-500.0,0.00013945,2]
[353103605,1739562690459,-500.0,0.00013945,2]
[353103606,1739562690468,-500.0,0.00013945,2]
[353103607,1739562690478,-3689.39,0.00013945,2]
[353103608,1739562690487,-1314.39,0.00013945,2]
[353103609,1739562690496,-500.0,0.00013945,2]
[353103610,1739562690506,-2838.24,0.00013945,2]
[353103611,1739562690515,-500.0,0.00013945,2]
[353103612,1739562690525,-836.24,0.00013945,2]
[353103613,1739562690535,-3268.54,0.00013945,2]
[353103614,1739562690545,-151.0,0.00013945,2]
[353103615,1739562690555,-2673.48,0.00013945,2]
[353103616,1739562690564,-1313.16,0.00013945,2]
[353103617,1739562690573,-500.0,0.00013945,2]
[353103618,1739562690583,-503.47274833,0.00013945,2]
[353103619,1739562690592,-500.0,0.00013945,2]
[353103620,1739562690602,-1433.79,0.00013945,2]
[353103621,1739562690611,-4393.84,0.00013945,2]
[353103622,1739562690620,-2254.12,0.00013945,2]
[353103623,1739562690629,-610.191311,0.00013945,2]
[353103624,1739562690639,-1247.79,0.00013945,2]
[353103625,1739562690648,-500.0,0.00013945,2]
[353103626,1739562690658,-500.0,0.00013945,2]
[353103627,1739562690669,-746.09,0.00013945,2]
[353103628,1739562690678,-2132.78,0.00013945,2]
[353103629,1739562690687,-6401.76,0.00013945,2]
[353103630,1739562690696,-500.0,0.00013945,2]
[353103631,1739562690706,-497.94617267,0.00013945,2]
[353103632,1739562690715,-3513.72,0.00013945,2]
[353103633,1739562690724,-5503.64,0.00013945,2]
[353103634,1739562690733,-500.0,0.00013945,2]
[353103635,1739562690743,-1359.07,0.00013945,2]
[353103636,1739562690753,-635.45,0.00013945,2]
[353103637,1739562690763,-514.5908591,0.00013945,2]
[353103638,1739562690774,-543.33,0.00013945,2]
[353103639,1739562690783,-500.0,0.00013945,2]
[353103640,1739562690792,-2305.47,0.00013945,2]
[353103641,1739562690803,-1112.97,0.00013945,2]
[353103642,1739562690813,-4264.94,0.00013945,2]
[353103643,1739562690823,-2529.36,0.00013945,2]
[353103644,1739562690833,-2278.35,0.00013945,2]
[353103645,1739562690842,-9206.02,0.00013945,2]
[353103646,1739562690852,-500.0,0.00013945,2]
[353103647,1739562690862,-4074.19,0.00013945,2]
[353103648,1739562690871,-299.71679252,0.00013945,2]
[353103649,1739562690881,-500.0,0.00013945,2]
[353103650,1739562690890,-500.0,0.00013945,2]
[353103651,1739562690900,-1175.17,0.00013945,2]
[353103652,1739562690910,-500.0,0.00013945,2]
[353103653,1739562690919,-510.42641773,0.00013945,2]
[353103654,1739562690932,-3373.59,0.00013945,2]
[353103655,1739562690941,-800.34,0.00013945,2]
[353103656,1739562690951,-1135.84,0.00013945,2]
[353103657,1739562690961,-500.0,0.00013945,2]
[353103658,1739562690971,-601.910201,0.00013945,2]
[353103659,1739562690980,-505.15177408,0.00013945,2]
[353103660,1739562690990,-720.69,0.00013945,2]
[353103661,1739562691001,-698.82,0.00013945,2]
[353103662,1739562691013,-1232.26,0.00013945,2]
[353103663,1739562691023,-500.0,0.00013945,2]
[353103664,1739562691033,-1636.4,0.00013945,2]
[353103665,1739562691043,-1013.64,0.00013945,2]
[353103666,1739562691053,-500.0,0.00013945,2]
[353103667,1739562691063,-500.0,0.00013945,2]
[353103668,1739562691074,-580.54,0.00013945,2]
[353103669,1739562691084,-2594.71,0.00013945,2]
[353103670,1739562691094,-2778.43,0.00013945,2]
[353103671,1739562691104,-500.0,0.00013945,2]
[353103672,1739562691115,-500.0,0.00013945,2]
[353103673,1739562691126,-2088.88,0.00013945,2]
[353103674,1739562691136,-1341.64,0.00013945,2]
[353103675,1739562691146,-500.0,0.00013945,2]
[353103676,1739562691155,-2016.81,0.00013945,2]
[353103677,1739562691165,-500.0,0.00013945,2]
[353103678,1739562691175,-150.0,0.0001397,2]
[353103679,1739562691185,-540.0,0.00013971,2]
[353103680,1739562691196,-1563.0,0.00013971,2]
[353103681,1739562691206,-917.98,0.00013971,2]
[353103682,1739562691215,-150.0,0.00013971,2]
[353103683,1739562691225,-540.0,0.00013998,2]
[353103684,1739562691235,-1563.0,0.00013998,2]
[353103685,1739562691245,-1000.0,0.00014,2]
[353103686,1739562691255,-1000.0,0.00014,3]
[353103687,1739562691265,-1000.0,0.00014,3]
[353103688,1739562691275,-500.0,0.00014,2]
[353103689,1739562691285,-500.0,0.00014,2]
[353103690,1739562691295,-500.0,0.00014,2]
[353103691,1739562691312,-500.0,0.00014,2]
[353103692,1739562691322,-500.0,0.00014,2]
[353103693,1739562691334,-500.0,0.00014,2]
[353103694,1739562691345,-500.0,0.00014,2]
[353103695,1739562691356,-500.0,0.00014,2]
[353103696,1739562691367,-500.0,0.00014,2]
[353103697,1739562691378,-500.0,0.00014,2]
[353103698,1739562691388,-500.0,0.00014,2]
[353103699,1739562691398,-500.0,0.00014,2]
[353103700,1739562691408,-500.0,0.00014,2]
[353103701,1739562691419,-500.0,0.00014,2]
[353103702,1739562691429,-500.0,0.00014,2]
[353103703,1739562691440,-500.0,0.00014,2]
[353103704,1739562691451,-500.0,0.00014,2]
[353103705,1739562691462,-500.0,0.00014,2]
[353103706,1739562691473,-500.0,0.00014,2]
[353103707,1739562691484,-500.0,0.00014,2]
[353103708,1739562691494,-500.0,0.00014,2]
[353103709,1739562691505,-500.0,0.00014,2]
[353103710,1739562691516,-500.0,0.00014,2]
[353103711,1739562691527,-500.0,0.00014,2]
[353103712,1739562691538,-500.0,0.00014,2]
[353103713,1739562691548,-500.0,0.00014,2]
[353103714,1739562691559,-500.0,0.00014,2]
[353103715,1739562691570,-500.0,0.00014,2]
[353103716,1739562691579,-500.0,0.00014,2]
[353103717,1739562691589,-500.0,0.00014,2]
[353103718,1739562691598,-500.0,0.00014,2]
[353103719,1739562691608,-500.0,0.00014,2]
[353103720,1739562691618,-500.0,0.00014,2]
[353103721,1739562691628,-228.59,0.00014,2]
[353103722,1739562691638,-2000.0,0.00014,2]
[353103723,1739562691648,-2010.2901,0.00014,2]
[353103724,1739562691658,-2000.0,0.00014,2]
[353103725,1739562691669,-2000.0,0.00014,2]
[353103726,1739562691679,-2000.0,0.00014,2]
[353103727,1739562691689,-540.0,0.00014026,2]
[353103728,1739562691699,-1563.0,0.00014026,2]
[353103729,1739562691709,-300.0,0.00014026,2]
[353103730,1739562691719,-300.0,0.00014026,2]
[353103731,1739562691730,-6825.90326118,0.00014027,2]
[353103732,1739562691740,-1642.851728,0.00014027,2]
[353103733,1739562691750,-160.387295,0.00014027,2]
[353103734,1739562691761,-513.32,0.00014027,2]
[353103735,1739562691771,-778.74,0.00014027,2]
[353103736,1739562691782,-500.0,0.00014027,2]
[353103737,1739562691793,-505.59144345,0.00014027,2]
[353103738,1739562691807,-676.39,0.00014027,2]
[353103739,1739562691818,-500.0,0.00014027,2]
[353103740,1739562691827,-500.0,0.00014027,2]
[353103741,1739562691838,-576.1,0.00014027,2]
[353103742,1739562691848,-500.0,0.00014027,2]
[353103743,1739562691858,-500.0,0.00014027,2]
[353103744,1739562691868,-500.0,0.00014027,2]
[353103745,1739562691877,-500.0,0.00014027,2]
[353103746,1739562691887,-500.0,0.00014027,2]
[353103747,1739562691897,-500.0,0.00014027,2]
[353103748,1739562691908,-500.0,0.00014027,2]
[353103749,1739562691919,-500.0,0.00014027,2]
[353103750,1739562691933,-500.0,0.00014027,2]
[353103751,1739562691943,-505.63894796,0.00014027,2]
[353103752,1739562691953,-631.01,0.00014027,2]
[353103753,1739562691963,-562.89,0.00014027,2]
[353103754,1739562691975,-500.0,0.00014027,2]
[353103755,1739562691986,-500.0,0.00014027,2]
[353103756,1739562691996,-500.0,0.00014027,2]
[353103757,1739562692007,-500.0,0.00014027,2]
[353103758,1739562692016,-500.0,0.00014027,2]
[353103759,1739562692026,-535.69,0.00014027,2]
[353103760,1739562692036,-500.0,0.00014027,2]
[353103761,1739562692047,-500.0,0.00014027,2]
[353103762,1739562692057,-500.0,0.00014027,2]
[353103763,1739562692069,-500.0,0.00014027,2]
[353103764,1739562692078,-593.71141815,0.00014027,2]
[353103765,1739562692088,-500.0,0.00014027,2]
[353103766,1739562692100,-500.0,0.00014027,2]
[353103767,1739562692110,-500.0,0.00014027,2]
[353103768,1739562692120,-500.0,0.00014027,2]
[353103769,1739562692130,-500.0,0.00014027,2]
[353103770,1739562692140,-500.0,0.00014027,2]
[353103771,1739562692150,-500.0,0.00014027,2]
[353103772,1739562692160,-509.93891658,0.00014027,2]
[353103773,1739562692169,-1068.82,0.00014027,2]
[353103774,1739562692179,-500.0,0.00014027,2]
[353103775,1739562692189,-500.0,0.00014027,2]
[353103776,1739562692199,-950.13,0.00014027,2]
[353103777,1739562692209,-505.02229857,0.00014027,2]
[353103778,1739562692218,-500.0,0.00014027,2]
[353103779,1739562692228,-500.0,0.00014027,2]
[353103780,1739562692238,-500.0,0.00014027,2]
[353103781,1739562692248,-391.1200243,0.00014027,2]
[353103782,1739562692258,-399.50271306,0.00014027,2]
[353103783,1739562692268,-500.0,0.00014027,2]
[353103784,1739562692277,-747.04,0.00014027,2]
[353103785,1739562692287,-500.0,0.00014027,2]
[353103786,1739562692297,-500.0,0.00014027,2]
[353103787,1739562692307,-500.0,0.00014027,2]
[353103788,1739562692322,-500.0,0.00014027,2]
[353103789,1739562692332,-500.0,0.00014027,2]
[353103790,1739562692341,-500.0,0.00014027,2]
[353103791,1739562692351,-500.0,0.00014027,2]
[353103792,1739562692362,-904.73,0.00014027,2]
[353103793,1739562692372,-511.02690719,0.00014027,2]
[353103794,1739562692382,-601.6,0.00014027,2]
[353103795,1739562692391,-500.0,0.00014027,2]
[353103796,1739562692401,-995.88,0.00014027,2]
[353103797,1739562692411,-500.0,0.00014027,2]
[353103798,1739562692421,-500.0,0.00014027,2]
[353103799,1739562692431,-663.94,0.00014027,2]
[353103800,1739562692441,-500.0,0.00014027,2]
[353103801,1739562692452,-500.0,0.00014027,2]
[353103802,1739562692462,-865.63,0.00014027,2]
[353103803,1739562692471,-526.77,0.00014027,2]
[353103804,1739562692482,-500.0,0.00014027,2]
[353103805,1739562692492,-517.75576057,0.00014027,2]
[353103806,1739562692501,-753.7,0.00014027,2]
[353103807,1739562692511,-500.0,0.00014027,2]
[353103808,1739562692521,-500.0,0.00014027,2]
[353103809,1739562692531,-500.0,0.00014027,2]
[353103810,1739562692540,-790.03,0.00014027,2]
[353103811,1739562692551,-500.0,0.00014027,2]
[353103812,1739562692561,-973.85,0.00014027,2]
[353103813,1739562692570,-500.0,0.00014027,2]
[353103814,1739562692581,-500.0,0.00014027,2]
[353103815,1739562692591,-929.64,0.00014027,2]
[353103816,1739562692602,-500.0,0.00014027,2]
[353103817,1739562692613,-500.0,0.00014027,2]
[353103818,1739562692624,-500.0,0.00014027,2]
[353103819,1739562692635,-506.43029608,0.00014027,2]
[353103820,1739562692646,-500.0,0.00014027,2]
[353103821,1739562692657,-504.22296796,0.00014027,2]
[353103822,1739562692667,-536.35,0.00014027,2]
[353103823,1739562692677,-500.0,0.00014027,2]
[353103824,1739562692687,-500.0,0.00014027,2]
[353103825,1739562692697,-526.67,0.00014027,2]
[353103826,1739562692707,-500.0,0.00014027,2]
[353103827,1739562692718,-500.0,0.00014027,2]
[353103828,1739562692729,-500.0,0.00014027,2]
[353103829,1739562692739,-500.0,0.00014027,2]
[353103830,1739562692749,-500.0,0.00014027,2]
[353103831,1739562692760,-500.0,0.00014027,2]
[353103832,1739562692769,-511.34395371,0.00014027,2]
[353103833,1739562692779,-500.0,0.00014027,2]
[353103834,1739562692789,-815.87,0.00014027,2]
[353103835,1739562692798,-500.0,0.00014027,2]
[353103836,1739562692808,-500.0,0.00014027,2]
[353103837,1739562692818,-500.0,0.00014027,2]
[353103838,1739562692827,-567.12,0.00014027,2]
[353103839,1739562692836,-500.0,0.00014027,2]
[353103840,1739562692846,-500.0,0.00014027,2]
[353103841,1739562692855,-787.02,0.00014027,2]
[353103842,1739562692864,-500.0,0.00014027,2]
[353103843,1739562692875,-500.0,0.00014027,2]
[353103844,1739562692887,-514.52000665,0.00014027,2]